bitfinex-derivatives/quotes_BNBF0:USTF0_20250220
["timestamp","ask_amount","ask_price","bid_price","bid_amount"]
[1740012458609,0.30660268,652.31,650.02,0.30768284]
[1740012458812,0.28201767,652.3,650.02,0.30768284]
[1740012459007,0.28201767,652.29,650.02,0.30768284]
[1740012459212,0.58863446,652.28,650.02,0.30768284]
[1740012459415,0.58863916,652.27,650.02,0.30768284]
[1740012459612,0.58864386,652.26,650.02,0.30768284]
[1740012459915,1.1326265,652.56,650.02,0.30768284]
[1740012459916,0.58864856,652.25,650.02,0.30768284]
[1740012460115,0.58865326,652.24,650.02,0.30768284]
[1740012460309,0.58865796,652.23,650.02,0.30768284]
[1740012460509,1.3591518,652.75,650.02,0.30768284]
[1740012460510,0.30664499,652.22,650.02,0.30768284]
[1740012460913,0.28200613,652.21,650.02,0.30768284]
[1740012461215,0.28200613,652.2,650.02,0.30768284]
[1740012461415,0.28200613,652.19,650.02,0.30768284]
[1740012461614,0.28200613,652.18,650.02,0.30768284]
[1740012461810,0.30664969,652.21,650.02,0.30768284]
[1740012461811,0.28200613,652.17,650.02,0.30768284]
[1740012462011,0.28200613,652.2,650.02,0.30768284]
[1740012465016,0.58866523,652.19,650.02,0.30768284]
[1740012465318,0.3066685,652.17,650.02,0.30768284]
[1740012465615,0.28200613,652.16,650.02,0.30768284]
[1740012465813,0.30668261,652.14,650.02,0.30768284]
[1740012466011,0.28200613,652.13,650.02,0.30768284]
[1740012466214,0.58869814,652.12,650.02,0.30768284]
[1740012466414,0.58870285,652.11,650.02,0.30768284]
[1740012466611,0.30670142,652.1,650.02,0.30768284]
[1740012466813,0.28200613,652.09,650.02,0.30768284]
[1740012467019,0.58871696,652.08,650.02,0.30768284]
[1740012467210,0.58872166,652.07,650.02,0.30768284]
[1740012467413,0.28200613,652.06,650.02,0.30768284]
[1740012467613,0.28200613,652.05,650.02,0.30768284]
[1740012467811,0.28200613,652.04,650.02,0.30768284]
[1740012468014,0.28200613,652.06,650.02,0.30768284]
[1740012468218,0.28200613,652.05,650.02,0.30768284]
[1740012468416,0.28200613,652.06,650.02,0.30768284]
[1740012468616,0.28200613,652.06,650.09,1.3565794]
[1740012468816,0.28200613,652.06,650.11,0.30764024]
[1740012469216,0.28200613,652.06,650.11,2.53000412]
[1740012470519,0.28200613,652.06,650.11,0.30764024]
[1740012470715,0.28200613,652.06,650.28,1.3565794]
[1740012471818,0.28200613,652.06,650.3,0.30755036]
[1740012473018,1.1326265,652.41,650.3,0.30755036]
[1740012473221,0.28191501,652.4,650.3,0.30755036]
[1740012474119,1.1326265,652.41,650.3,0.30755036]
[1740012474522,10.82583807,657.25,650.52,1.3565794]
[1740012474523,1.1326265,652.81,650.52,1.3565794]
[1740012474727,0.28181018,652.8,650.52,1.3565794]
[1740012475025,0.30637724,652.79,650.52,1.3565794]
[1740012475225,0.28181018,652.78,650.52,1.3565794]
[1740012476927,0.28181018,652.78,650.55,1.3565794]
[1740012479421,0.28181018,652.78,650.3,0.30755036]
[1740012479422,0.28181018,652.78,650.32,1.3565794]
[1740012479623,0.28181018,652.78,650.33,2.95703953]
[1740012481122,0.28181018,652.78,650.32,1.3565794]
[1740012481326,0.28181018,652.77,650.3,0.30755036]
[1740012481522,0.28181018,652.76,650.3,0.30755036]
[1740012481723,0.28181018,652.75,650.3,0.30755036]
[1740012481928,0.58821089,652.74,650.3,0.30755036]
[1740012482123,0.58821558,652.73,650.3,0.30755036]
[1740012482325,0.28181018,652.72,650.3,0.30755036]
[1740012486335,0.28172137,652.71,650.3,0.30755036]
[1740012486529,0.28172137,652.7,650.3,0.30755036]
[1740012486729,0.28172137,652.69,650.3,0.30755036]
[1740012486929,0.28172137,652.72,650.3,0.30755036]
[1740012487129,0.28172137,652.71,650.3,0.30755036]
[1740012487332,0.28172137,652.72,650.3,0.30755036]
[1740012488134,0.28172137,652.71,650.3,0.30755036]
[1740012488433,0.28172137,652.7,650.3,0.30755036]
[1740012488634,0.28172137,652.69,650.3,0.30755036]
[1740012488938,0.28172137,652.68,650.3,0.30755036]
[1740012489133,0.58815494,652.67,650.3,0.30755036]
[1740012489330,1.1326265,653.31,650.3,0.30755036]
[1740012489331,0.58815963,652.66,650.3,0.30755036]
[1740012489530,0.30643826,652.66,650.3,0.30755036]
[1740012489734,0.28183064,652.65,650.3,0.30755036]
[1740012490038,0.28183064,652.64,650.3,0.30755036]
[1740012490232,0.58828299,652.63,650.3,0.30755036]
[1740012490434,0.58828769,652.62,650.3,0.30755036]
[1740012490634,0.58829238,652.61,650.3,0.30755036]
[1740012490833,0.30646644,652.6,650.3,0.30755036]
[1740012491036,0.28185646,652.59,650.3,0.30755036]
[1740012491235,0.30647583,652.58,650.3,0.30755036]
[1740012491441,0.28185258,652.57,650.3,0.30755036]
[1740012491643,0.30648522,652.56,650.3,0.30755036]
[1740012491842,0.28185258,652.55,650.3,0.30755036]
[1740012492040,0.30649462,652.54,650.3,0.30755036]
[1740012492238,0.28185258,652.53,650.3,0.30755036]
[1740012493243,0.28185258,652.52,650.3,0.30755036]
[1740012493441,0.28185258,652.51,650.3,0.30755036]
[1740012493635,0.28185258,652.5,650.3,0.30755036]
[1740012493837,0.28185258,652.49,650.3,0.30755036]
[1740012494142,0.28185258,652.48,650.3,0.30755036]
[1740012494338,0.28185258,652.53,650.3,0.30755036]
[1740012494537,0.28185258,652.52,650.3,0.30755036]
[1740012494739,0.58836129,652.51,650.3,0.30755036]
[1740012494934,0.58836598,652.5,650.3,0.30755036]
[1740012495135,0.28185258,652.49,650.3,0.30755036]
[1740012495340,0.28185258,652.48,650.3,0.30755036]
[1740012495540,0.28185258,652.47,650.3,0.30755036]
[1740012495738,0.28185258,652.46,650.3,0.30755036]
[1740012496043,0.28185258,652.45,650.3,0.30755036]
[1740012496239,0.28185258,652.44,650.3,0.30755036]
[1740012496539,0.3065134,652.5,650.3,0.30755036]
[1740012497845,1.1326265,653.54,650.3,0.30755036]
[1740012498146,0.30608653,653.41,650.3,0.30755036]
[1740012498340,0.2817317,653.4,650.3,0.30755036]
[1740012498543,0.2817317,653.39,650.3,0.30755036]
[1740012498740,0.2817317,653.38,650.3,0.30755036]
[1740012498942,0.2817317,653.37,650.3,0.30755036]
[1740012499143,0.2817317,653.36,650.3,0.30755036]
[1740012499339,0.2817317,653.35,650.3,0.30755036]
[1740012499545,0.2817317,653.34,650.3,0.30755036]
[1740012499945,0.30616618,653.24,650.3,0.30755036]
[1740012500146,0.2817317,653.23,650.3,0.30755036]
[1740012500346,0.2817317,653.22,650.3,0.30755036]
[1740012500645,0.30616618,653.24,650.3,0.30755036]
[1740012500646,0.2817317,653.21,650.3,0.30755036]
[1740012500845,0.30616618,653.24,650.3,0.30755036]
[1740012500846,0.58791663,653.2,650.3,0.30755036]
[1740012501046,0.30619431,653.18,650.3,0.30755036]
[1740012501246,0.2817317,653.17,650.3,0.30755036]
[1740012501546,0.30620837,653.15,650.3,0.30755036]
[1740012501740,0.2817317,653.14,650.3,3.26918966]
[1740012501942,0.30622243,653.12,650.31,2.21123295]
[1740012502146,0.2817317,653.11,650.45,0.30747943]
[1740012502445,0.3062365,653.09,650.45,0.30747943]
[1740012502645,0.2817317,653.08,650.45,0.30747943]
[1740012502843,0.30625057,653.06,650.45,0.30747943]
[1740012503044,0.2817317,653.05,650.45,0.30747943]
[1740012503247,0.30626464,653.03,650.45,0.30747943]
[1740012503446,0.2817317,653.02,650.45,0.30747943]
[1740012503647,1.1326265,653.19,650.45,0.30747943]
[1740012503648,0.30627871,653.0,650.45,0.30747943]
[1740012503846,0.2817317,652.99,650.45,0.30747943]
[1740012504046,0.2817317,652.98,650.45,0.30747943]
[1740012504240,0.58802448,652.97,650.45,0.30747943]
[1740012504445,0.58802917,652.96,650.45,0.30747943]
[1740012504644,0.58803386,652.95,650.45,0.30747943]
[1740012504845,0.58803855,652.94,650.45,0.30747943]
[1740012505045,0.58804324,652.93,650.45,0.30747943]
[1740012505343,0.58804794,652.92,650.45,0.30747943]
[1740012505544,0.58805263,652.91,650.45,0.30747943]
[1740012505740,0.58805732,652.9,650.45,0.30747943]
[1740012505945,0.58806201,652.89,650.45,0.30747943]
[1740012506143,0.5880667,652.88,650.45,0.30747943]
[1740012506342,0.5880714,652.87,650.45,0.30747943]
[1740012506542,0.58807609,652.86,650.45,0.30747943]
[1740012506745,0.58808078,652.85,650.45,0.30747943]
[1740012506942,0.58808547,652.84,650.45,0.30747943]
[1740012507141,0.58809017,652.83,650.45,0.30747943]
[1740012507347,0.58809486,652.82,650.45,0.30747943]
[1740012507549,0.58809955,652.81,650.45,0.30747943]
[1740012507850,0.58810424,652.8,650.45,3.26911873]
[1740012508148,0.58810894,652.79,650.46,2.21123295]
[1740012508349,0.2817317,652.78,650.57,0.30742272]
[1740012511244,0.2817317,652.78,650.62,1.3565794]
[1740012511443,0.2817317,652.78,650.72,0.30735185]
[1740012513348,0.28174735,652.77,650.72,0.30735185]
[1740012513549,0.28174735,652.78,650.72,0.30735185]
[1740012514546,0.28173101,652.77,650.72,0.30735185]
[1740012514744,0.28173101,652.76,650.72,0.30735185]
[1740012514944,0.30639601,652.75,650.72,0.30735185]
[1740012515144,0.28178377,652.74,650.72,0.30735185]
[1740012515343,0.3064054,652.73,650.72,0.30735185]
[1740012515547,0.28178377,652.72,650.72,0.30735185]
[1740012515748,0.30641479,652.71,650.72,0.30735185]
[1740012516747,0.28176737,652.7,650.72,0.30735185]
[1740012516952,0.58818685,652.7,650.72,0.30735185]
[1740012517153,0.28176737,652.69,650.72,0.30735185]
[1740012517548,0.30641948,652.7,650.72,0.30735185]
[1740012523457,0.2817567,652.69,650.72,0.30735185]
[1740012523850,0.30641948,652.7,650.72,0.30735185]
[1740012525753,0.28178356,652.69,650.72,0.30735185]
[1740012525952,0.30641948,652.7,650.72,0.30735185]
[1740012526151,0.28178027,652.69,650.72,0.30735185]
[1740012526851,0.30641948,652.7,650.72,0.30735185]
[1740012532459,0.30641948,652.7,650.72,2.61542105]
[1740012532668,0.30641948,652.7,651.01,1.3565794]
[1740012532868,0.30641948,652.7,651.03,0.3072055]
[1740012534769,0.30641948,652.7,651.03,2.52688324]
[1740012534969,0.30641948,652.7,651.03,0.3072055]
[1740012535171,0.30641948,652.7,651.03,2.52694211]
[1740012535672,0.30641948,652.7,651.03,0.3072055]
[1740012540679,1.1326265,653.22,651.03,0.3072055]
[1740012540880,0.2815895,653.21,651.03,0.3072055]
[1740012541381,0.58776974,653.21,651.03,0.3072055]
[1740012541580,0.2815895,653.2,651.03,0.3072055]
[1740012541781,1.414216,653.2,651.03,0.3072055]
[1740012541976,0.2815895,653.19,651.03,0.3072055]
[1740012542179,0.30619431,653.18,651.03,0.3072055]
[1740012542380,0.2815895,653.17,651.03,0.3072055]
[1740012542981,0.2815895,653.17,651.14,1.3565794]
[1740012543981,0.28161373,653.16,651.14,1.3565794]
[1740012544182,0.28161373,653.15,651.14,1.3565794]
[1740012544482,0.28161373,653.14,651.14,1.3565794]
[1740012544681,0.28161373,653.13,651.14,1.3565794]
[1740012544883,0.28161373,653.17,651.14,1.3565794]
[1740012545080,0.28161373,653.16,651.14,1.3565794]
[1740012545284,0.28161373,653.17,651.03,0.3072055]
[1740012545482,0.58781741,653.16,651.03,0.3072055]
[1740012545683,0.58782848,653.15,651.03,0.3072055]
[1740012545982,0.58783317,653.14,651.03,0.3072055]
[1740012546179,0.58783786,653.13,651.03,0.3072055]
[1740012546378,0.30621775,653.13,651.03,0.3072055]
[1740012549578,0.30621775,653.13,651.1,1.3565794]
[1740012549778,0.30621775,653.13,651.2,0.3071253]
[1740012552288,0.28153065,653.12,651.2,0.3071253]
[1740012555788,0.30621775,653.13,651.2,0.3071253]
[1740012555980,0.28153265,653.12,651.2,0.3071253]
[1740012556382,0.30621775,653.13,651.2,0.3071253]
[1740012560992,0.28159826,653.12,651.2,0.3071253]
[1740012561192,0.30622712,653.11,651.2,0.3071253]
[1740012561387,0.28159826,653.1,651.2,0.3071253]
[1740012561585,0.3062365,653.09,651.2,0.3071253]
[1740012561785,0.28159826,653.08,651.2,0.3071253]
[1740012562085,0.30624588,653.07,651.2,0.3071253]
[1740012562289,0.28159826,653.06,651.2,0.3071253]
[1740012562490,0.30625526,653.05,651.2,0.3071253]
[1740012562688,0.28159826,653.04,651.2,0.3071253]
[1740012562892,0.30626464,653.03,651.2,0.3071253]
[1740012563093,0.28159826,653.02,651.2,0.3071253]
[1740012563295,0.30627402,653.01,651.2,0.3071253]
[1740012563494,0.28159826,653.0,651.2,0.3071253]
[1740012563692,0.3062834,652.99,651.2,0.3071253]
[1740012563894,0.28159826,652.98,651.2,0.3071253]
[1740012564290,0.28164943,652.97,651.2,0.3071253]
[1740012564494,0.28164943,652.98,651.2,0.3071253]
[1740012564694,0.28164943,652.97,651.2,0.3071253]
[1740012564895,0.28164943,652.96,651.2,0.3071253]
[1740012565097,0.28164943,652.98,651.2,0.3071253]
[1740012565298,0.28164943,652.97,651.2,0.3071253]
[1740012565599,0.28164943,652.96,651.2,0.3071253]
[1740012565898,0.30630216,652.95,651.2,0.3071253]
[1740012566094,0.28164943,652.94,651.2,0.3071253]
[1740012566294,0.30631154,652.93,651.2,0.3071253]
[1740012566496,0.28164943,652.92,651.2,0.3071253]
[1740012567697,0.30632093,652.91,651.2,0.3071253]
[1740012568002,0.28164943,652.9,651.2,0.3071253]
[1740012568203,0.30633031,652.89,651.2,0.3071253]
[1740012568502,0.28164943,652.88,651.2,0.3071253]
[1740012568702,0.3063397,652.87,651.2,0.3071253]
[1740012568897,0.28164943,652.86,651.2,0.3071253]
[1740012569297,0.3063397,652.87,651.2,0.3071253]
[1740012569501,0.28172657,652.86,651.2,0.3071253]
[1740012569900,0.30634908,652.85,651.2,0.3071253]
[1740012570202,0.28172657,652.84,651.2,0.3071253]
[1740012570703,0.30635847,652.83,651.2,0.3071253]
[1740012570898,0.28172657,652.82,651.2,0.3071253]
[1740012571097,0.30636785,652.81,651.2,0.3071253]
[1740012571297,0.28172657,652.8,651.2,0.3071253]
[1740012573600,0.28172657,652.79,651.2,0.3071253]
[1740012575203,0.30638193,652.78,651.2,0.3071253]
[1740012575404,0.28172657,652.77,651.2,0.3071253]
[1740012575604,0.58811789,652.76,651.2,0.3071253]
[1740012575804,0.58812258,652.75,651.2,0.3071253]
[1740012576006,0.30640071,652.74,651.2,0.3071253]
[1740012576206,0.28172657,652.73,651.2,0.3071253]
[1740012576398,0.58813666,652.72,651.2,0.3071253]
[1740012576598,0.58814136,652.71,651.2,0.3071253]
[1740012576803,0.58814605,652.7,651.2,0.3071253]
[1740012576999,0.58815075,652.69,651.2,0.3071253]
[1740012577204,0.58815544,652.68,651.2,0.3071253]
[1740012577401,0.30643826,652.66,651.2,0.3071253]
[1740012577604,0.28172657,652.65,651.2,0.3071253]
[1740012577801,0.30644765,652.64,651.2,0.3071253]
[1740012578000,0.28172657,652.63,651.2,0.3071253]
[1740012578803,0.30645705,652.62,651.2,0.3071253]
[1740012579007,0.28172657,652.61,651.2,0.3071253]
[1740012582314,0.30645705,652.62,651.2,0.3071253]
[1740012583813,0.28172697,652.61,651.2,0.3071253]
[1740012585413,0.30645705,652.62,651.2,0.3071253]
[1740012586114,0.28173634,652.61,651.2,0.3071253]
[1740012590215,0.30645705,652.62,651.2,0.3071253]
[1740012590613,1.1326265,653.17,651.2,0.3071253]
[1740012590813,0.58787394,653.16,651.2,0.3071253]
[1740012591017,0.58787863,653.15,651.2,0.3071253]
[1740012591218,0.58788332,653.14,651.2,0.3071253]
[1740012591417,0.58788801,653.13,651.2,0.3071253]
[1740012591613,0.58789269,653.12,651.2,0.3071253]
[1740012591814,0.58789738,653.11,651.2,0.3071253]
[1740012592013,0.58790207,653.1,651.2,0.3071253]
[1740012592214,0.58790676,653.09,651.2,0.3071253]
[1740012592418,0.58791145,653.08,651.2,0.3071253]
[1740012592617,0.58791614,653.07,651.2,0.3071253]
[1740012592814,0.58792083,653.06,651.2,0.3071253]
[1740012593017,0.58792552,653.05,651.2,0.3071253]
[1740012593217,0.58793021,653.04,651.2,0.3071253]
[1740012593421,0.28167026,653.03,651.2,0.3071253]
[1740012593823,0.30626933,653.02,651.2,0.3071253]
[1740012594021,0.28167026,653.01,651.2,0.3071253]
[1740012594221,0.30627871,653.0,651.2,0.3071253]
[1740012594422,0.28167026,652.99,651.2,0.3071253]
[1740012594622,0.58795366,652.99,651.2,0.3071253]
[1740012594822,0.28167026,652.98,651.2,0.3071253]
[1740012595524,0.3062834,652.99,651.2,0.3071253]
[1740012595827,0.28164372,652.98,651.2,0.3071253]
[1740012599925,0.3062834,652.99,651.2,0.3071253]
[1740012599926,0.28165292,652.97,651.2,0.3071253]
[1740012600124,0.3062834,652.99,651.2,0.3071253]
[1740012600125,0.28165292,652.98,651.2,0.3071253]
[1740012600325,0.28165292,652.97,651.2,0.3071253]
[1740012600525,0.28165292,652.96,651.2,0.3071253]
[1740012600726,0.28165292,652.98,651.2,0.3071253]
[1740012601026,0.5879457,652.97,651.2,0.3071253]
[1740012601222,0.58795039,652.96,651.2,0.3071253]
[1740012601529,0.58795508,652.95,651.2,0.3071253]
[1740012601726,0.58795977,652.94,651.2,0.3071253]
[1740012601929,1.1326265,653.19,651.2,0.3071253]
[1740012601930,0.58796446,652.93,651.2,0.3071253]
[1740012602120,0.30632093,652.91,651.2,0.3071253]
[1740012602627,0.28175743,652.9,651.2,0.3071253]
[1740012602827,0.28175743,652.89,651.2,0.3071253]
[1740012603128,0.58809243,652.88,651.2,0.3071253]
[1740012603424,0.58809713,652.87,651.2,0.3071253]
[1740012603626,0.28175743,652.86,651.2,0.3071253]
[1740012603827,0.58810651,652.85,651.2,0.3071253]
[1740012604027,0.5881112,652.84,651.2,0.3071253]
[1740012604223,0.5881159,652.83,651.2,0.3071253]
[1740012604426,0.28175743,652.82,651.2,0.3071253]
[1740012604827,0.30636785,652.81,651.2,0.3071253]
[1740012605126,0.28175743,652.8,651.2,0.3071253]
[1740012605727,0.58810686,652.79,651.2,0.3071253]
[1740012605929,0.58811155,652.78,651.2,0.3071253]
[1740012606128,0.28172962,652.77,651.2,0.3071253]
[1740012609034,0.30638193,652.78,651.2,0.3071253]
[1740012609234,0.28169349,652.77,651.2,0.3071253]
[1740012610731,0.30638193,652.78,651.2,0.3071253]
[1740012611036,0.28171192,652.77,651.2,0.3071253]
[1740012612438,0.30638193,652.78,651.2,0.3071253]
[1740012612741,0.28170563,652.77,651.2,0.3071253]
[1740012614142,0.30639132,652.76,651.2,0.3071253]
[1740012614343,0.28170563,652.75,651.2,0.3071253]
[1740012614638,0.30639132,652.76,651.2,0.3071253]
[1740012615239,0.28166566,652.75,651.2,0.3071253]
[1740012615435,0.30639132,652.76,651.2,0.3071253]
[1740012618639,1.1326265,653.11,651.2,0.3071253]
[1740012618845,0.58782789,653.1,651.2,0.3071253]
[1740012619045,0.28159608,653.09,651.2,0.3071253]
[1740012621038,0.28157112,653.08,651.2,0.3071253]
[1740012621243,0.28157112,653.07,651.2,0.3071253]
[1740012621441,0.28157112,653.06,651.2,0.3071253]
[1740012621644,0.28157112,653.05,651.2,0.3071253]
[1740012621842,0.28157112,653.04,651.2,0.3071253]
[1740012622146,0.28157112,653.03,651.2,0.3071253]
[1740012622346,0.28157112,653.02,651.2,0.3071253]
[1740012622543,0.28157112,653.09,651.2,0.3071253]
[1740012622749,0.28155376,653.08,651.2,0.3071253]
[1740012623044,0.28155376,653.07,651.25,1.3565794]
[1740012623248,0.28155376,653.06,651.27,0.30709229]
[1740012623443,0.28155376,653.09,651.27,0.30709229]
[1740012623646,0.28155376,653.08,651.27,0.30709229]
[1740012623842,0.28155376,653.07,651.27,0.30709229]
[1740012624047,0.28155376,653.09,651.27,0.30709229]
[1740012624247,0.28155376,653.08,651.27,0.30709229]
[1740012624441,0.28155376,653.07,651.27,0.30709229]
[1740012624643,0.28155376,653.09,651.27,0.30709229]
[1740012624843,0.28155376,653.08,651.28,1.3565794]
[1740012625047,0.28155376,653.07,651.3,0.30707815]
[1740012625247,0.28155376,653.06,651.3,0.30707815]
[1740012625448,0.28155376,653.05,651.3,0.30707815]
[1740012625644,0.28155376,653.09,651.3,0.30707815]
[1740012625845,0.28155376,653.08,651.3,0.30707815]
[1740012626049,0.30623181,653.1,651.3,0.30707815]
[1740012626350,0.28159359,653.09,651.3,0.30707815]
[1740012626550,0.28159359,653.08,651.3,0.30707815]
[1740012626751,0.28159359,653.07,651.3,0.30707815]
[1740012626951,0.28159359,653.06,651.3,0.30707815]
[1740012627250,0.58784885,653.05,651.3,0.30707815]
[1740012627551,0.30626464,653.03,651.3,0.30707815]
[1740012627749,0.28168344,653.02,651.3,0.30707815]
[1740012627950,0.30627402,653.01,651.3,0.30707815]
[1740012628253,0.28168344,653.0,651.3,0.30707815]
[1740012628948,0.3062834,652.99,651.3,0.30707815]
[1740012629150,0.28168344,652.98,651.3,0.30707815]
[1740012629346,0.30629278,652.97,651.3,0.30707815]
[1740012629550,0.28169005,652.96,651.3,0.30707815]
[1740012629950,0.30629278,652.97,651.3,0.30707815]
[1740012630556,0.28167983,652.96,651.3,0.30707815]
[1740012631448,0.30630216,652.95,651.3,0.30707815]
[1740012631653,0.28167983,652.94,651.3,0.30707815]
[1740012631855,0.30631154,652.93,651.3,0.30707815]
[1740012632049,0.28167983,652.92,651.3,0.30707815]
[1740012632254,0.30632093,652.91,651.3,0.30707815]
[1740012632449,0.28167983,652.9,651.3,0.30707815]
[1740012633049,0.30633031,652.89,651.3,0.30707815]
[1740012633255,0.28167983,652.88,651.3,0.30707815]
[1740012633458,0.3063397,652.87,651.3,0.30707815]
[1740012633755,0.28167983,652.86,651.3,0.30707815]
[1740012634555,0.3063397,652.87,651.3,0.30707815]
[1740012634857,0.28169975,652.86,651.3,0.30707815]
[1740012637257,0.3063397,652.87,651.3,0.30707815]
[1740012639160,0.28160737,652.86,651.3,0.30707815]
[1740012639361,0.3063397,652.87,651.3,0.30707815]
[1740012646459,0.2815985,652.86,651.3,0.30707815]
[1740012646859,0.3063397,652.87,651.3,3.28784487]
[1740012647060,0.3063397,652.87,651.31,2.22647857]
[1740012647261,0.28159729,652.86,651.33,0.307064]
[1740012648463,0.28159729,652.86,651.33,2.53354257]
[1740012649965,0.3063397,652.87,651.33,2.53354257]
[1740012649966,0.28161575,652.85,651.34,2.98076672]
[1740012650165,0.28161575,652.86,651.34,2.98076672]
[1740012650467,0.3063397,652.87,651.36,0.30704986]
[1740012651359,1.1326265,653.2,651.36,0.30704986]
[1740012651564,0.28155832,653.19,651.36,0.30704986]
[1740012651957,0.28155832,653.41,651.36,0.30704986]
[1740012652263,0.30609121,653.4,651.36,0.30704986]
[1740012652465,0.28155832,653.39,651.36,0.30704986]
[1740012656667,0.30610058,653.38,651.36,0.30704986]
[1740012656864,0.28155832,653.37,651.36,0.30704986]
[1740012657265,0.28148914,653.36,651.36,0.30704986]
[1740012657464,0.28148914,653.37,651.36,0.30704986]
[1740012658863,0.30610058,653.38,651.36,0.30704986]
[1740012659066,0.28152196,653.37,651.36,0.30704986]
[1740012659463,0.30610995,653.36,651.36,0.30704986]
[1740012659660,0.28152196,653.35,651.36,0.30704986]
[1740012661369,0.58764128,653.34,651.36,0.30704986]
[1740012661566,0.58764597,653.33,651.36,0.30704986]
[1740012661765,0.58765065,653.32,651.36,0.30704986]
[1740012661961,0.30613806,653.3,651.36,0.30704986]
[1740012662162,0.28152196,653.29,651.36,0.30704986]
[1740012664866,0.30614744,653.28,651.36,0.30704986]
[1740012665068,0.28152196,653.27,651.36,0.30704986]
[1740012665267,0.30615681,653.26,651.36,0.30704986]
[1740012665467,0.28152196,653.25,651.36,0.30704986]
[1740012666274,0.30616618,653.24,651.36,0.30704986]
[1740012666473,0.28152196,653.23,651.36,0.30704986]
[1740012668169,0.28152196,653.22,651.36,0.30704986]
[1740012668376,0.30618493,653.2,651.36,0.30704986]
[1740012668574,0.28152196,653.19,651.36,0.30704986]
[1740012668973,0.28152196,653.18,651.36,0.30704986]
[1740012669167,0.28152196,653.19,651.36,0.30704986]
[1740012669370,0.28152196,653.18,651.36,0.30704986]
[1740012669573,0.28152196,653.19,651.36,0.30704986]
[1740012669767,0.28152196,653.18,651.36,0.30704986]
[1740012669973,0.28152196,653.19,651.36,0.30704986]
[1740012670175,0.28152196,653.18,651.36,0.30704986]
[1740012670375,0.28152196,653.19,651.36,0.30704986]
[1740012670577,0.28152196,653.18,651.36,0.30704986]
[1740012670876,0.28152196,653.17,651.36,0.30704986]
[1740012671072,0.28152196,653.19,651.36,0.30704986]
[1740012674177,0.28152196,653.18,651.36,0.30704986]
[1740012674378,0.28152196,653.17,651.36,0.30704986]
[1740012674679,0.28152196,653.16,651.36,0.30704986]
[1740012674881,0.28152196,653.15,651.36,0.30704986]
[1740012675178,1.1326265,653.13,651.36,0.30704986]
[1740012675378,0.28152196,653.12,651.36,0.30704986]
[1740012675679,0.28152196,653.11,651.36,0.30704986]
[1740012675873,0.28152196,653.1,651.36,0.30704986]
[1740012676079,0.28152196,653.09,651.36,0.30704986]
[1740012676279,0.28152196,653.08,651.36,0.30704986]
[1740012676580,0.28152196,653.07,651.36,0.30704986]
[1740012676779,0.28152196,653.06,651.36,0.30704986]
[1740012677081,0.28152196,653.05,651.36,0.30704986]
[1740012677380,0.28152196,653.04,651.36,0.30704986]
[1740012677574,0.28152196,653.03,651.36,0.30704986]
[1740012677777,0.28152196,653.02,651.36,0.30704986]
[1740012678077,0.58779598,653.01,651.36,0.30704986]
[1740012678272,0.28152196,653.0,651.36,0.30704986]
[1740012678474,0.28152196,652.99,651.36,0.30704986]
[1740012678774,0.28152196,652.98,651.36,0.30704986]
[1740012678973,0.28152196,652.97,651.36,0.30704986]
[1740012679173,0.28152196,652.96,651.36,0.30704986]
[1740012679377,0.30630216,652.95,651.36,0.30704986]
[1740012679575,0.28152196,652.94,651.36,0.30704986]
[1740012679778,0.30631154,652.93,651.36,0.30704986]
[1740012679975,0.28152196,652.92,651.36,0.30704986]
[1740012680279,0.30632093,652.91,651.36,0.30704986]
[1740012680479,0.28152196,652.9,651.36,0.30704986]
[1740012680681,0.30633031,652.89,651.36,0.30704986]
[1740012680881,0.28152196,652.88,651.36,0.30704986]
[1740012681275,0.28170065,652.87,651.36,0.30704986]
[1740012681478,0.28170065,652.86,651.36,0.30704986]
[1740012681676,0.28170065,652.85,651.36,0.30704986]
[1740012681879,0.30635377,652.84,651.36,0.30704986]
[1740012682080,0.28170065,652.83,651.36,0.30704986]
[1740012682282,0.58805912,652.83,651.36,0.30704986]
[1740012682481,0.28170065,652.82,651.36,0.30704986]
[1740012683578,0.30636785,652.81,651.36,0.30704986]
[1740012683775,0.28170065,652.8,651.36,0.30704986]
[1740012683981,0.30637724,652.79,651.36,0.30704986]
[1740012684177,0.28170065,652.78,651.36,0.30704986]
[1740012684378,0.30638662,652.77,651.36,0.30704986]
[1740012684579,0.28170065,652.76,651.36,0.30704986]
[1740012684883,0.30639601,652.75,651.36,0.30704986]
[1740012685084,0.28170065,652.74,651.36,0.30704986]
[1740012685285,0.28178446,652.73,651.36,0.30704986]
[1740012685485,0.28178446,652.72,651.36,0.30704986]
[1740012685785,0.58819925,652.71,651.36,0.30704986]
[1740012685988,0.58820394,652.7,651.36,0.30704986]
[1740012686191,0.58820864,652.69,651.36,0.30704986]
[1740012686387,0.2817975,652.68,651.36,0.30704986]
[1740012686983,0.30643357,652.67,651.36,0.30704986]
[1740012691091,0.2817321,652.66,651.36,0.30704986]
[1740012691588,0.30643357,652.67,651.36,0.30704986]
[1740012694890,1.1326265,653.25,651.36,0.30704986]
[1740012695094,0.28166942,653.24,651.36,0.30704986]
[1740012695296,0.30617556,653.22,651.36,0.30704986]
[1740012695493,0.28166942,653.21,651.36,0.30704986]
[1740012695694,0.28166942,653.2,651.36,0.30704986]